bitfinex/quotes_BTCUSD_20250607
["timestamp","ask_amount","ask_price","bid_price","bid_amount"]
[1749267778422,1.36055982,104970.0,104960.0,1.20171569]
[1749267778653,1.3717261,104970.0,104960.0,1.20171569]
[1749267778862,1.37842599,104970.0,104960.0,1.21124303]
[1749267779074,1.37172617,104970.0,104960.0,1.21124303]
[1749267779279,1.37172613,104970.0,104960.0,1.21124303]
[1749267779488,1.37842597,104970.0,104960.0,1.21076303]
[1749267779698,1.37842597,104970.0,104960.0,0.81815569]
[1749267779902,1.37842597,104970.0,104960.0,1.20119569]
[1749267780075,1.37842657,104970.0,104960.0,1.20119569]
[1749267780304,1.37842718,104970.0,104960.0,1.20119569]
[1749267780496,1.37842718,104970.0,104960.0,1.21072303]
[1749267780497,1.37172709,104970.0,104960.0,1.21072303]
[1749267780716,1.37842718,104970.0,104960.0,1.21072303]
[1749267781146,1.37842718,104970.0,104960.0,1.20119569]
[1749267782069,1.36056043,104970.0,104960.0,1.20119569]
[1749267782281,1.35386019,104970.0,104960.0,1.20119569]
[1749267782664,1.37842775,104970.0,104960.0,1.20119569]
[1749267782875,1.37842775,104970.0,104960.0,1.21072303]
[1749267783688,0.25048594,104970.0,104960.0,1.21072285]
[1749267783905,0.76868994,104970.0,104960.0,1.21072303]
[1749267784114,0.80939624,104970.0,104960.0,1.21072303]
[1749267784326,0.81609648,104970.0,104960.0,1.21072303]
[1749267784665,0.81609648,104970.0,104960.0,1.22025028]
[1749267784912,1.34761321,104970.0,104960.0,1.22025028]
[1749267785066,1.36548086,104970.0,104960.0,1.22977735]
[1749267785265,0.80939657,104970.0,104960.0,1.22025028]
[1749267785580,0.79152892,104970.0,104960.0,1.22977744]
[1749267785785,0.81609692,104970.0,104960.0,1.22977744]
[1749267785982,0.79152892,104970.0,104960.0,1.23930451]
[1749267786191,0.81609692,104970.0,104960.0,1.23930451]
[1749267786511,0.81609692,104970.0,104960.0,1.22977744]
[1749267786912,0.80939682,104970.0,104960.0,1.22977744]
[1749267787118,0.80939682,104970.0,104960.0,1.22025028]
[1749267787322,0.79152892,104970.0,104960.0,1.22977744]
[1749267787870,0.79822938,104970.0,104960.0,1.22977744]
[1749267788107,0.81609728,104970.0,104960.0,1.22977744]
[1749267788375,0.63509255,104970.0,104960.0,1.23930433]
[1749267788603,0.63509255,104970.0,104960.0,1.23930442]
[1749267788803,0.63512382,104970.0,104960.0,1.23930442]
[1749267789016,0.62842337,104970.0,104960.0,1.23930442]
[1749267789223,0.63512382,104970.0,104960.0,1.23930442]
[1749267789561,0.63512382,104970.0,104960.0,1.23930388]
[1749267789768,0.62842337,104970.0,104960.0,1.23930388]
[1749267789977,0.63512388,104970.0,104960.0,1.23930388]
[1749267790447,0.60654521,104970.0,104960.0,1.23930334]
[1749267790638,0.6093705,104970.0,104960.0,1.25500334]
[1749267790845,0.61889648,104970.0,104960.0,1.27090334]
[1749267791060,0.62842307,104970.0,104960.0,1.27090334]
[1749267791265,0.62842294,104970.0,104960.0,1.27090334]
[1749267791436,0.61889678,104970.0,104960.0,1.27090334]
[1749267792025,0.59602649,104970.0,104960.0,1.27090334]
[1749267792230,0.60554597,104970.0,104960.0,1.27090334]
[1749267792528,0.58768448,104970.0,104960.0,1.27090334]
[1749267792756,0.58768448,104970.0,104960.0,1.25500334]
[1749267792994,0.6150723,104970.0,104960.0,1.25500334]
[1749267793228,0.60554596,104970.0,104960.0,1.25500334]
[1749267793721,0.57696802,104970.0,104960.0,1.25500334]
[1749267793949,0.58649062,104970.0,104960.0,1.25500334]
[1749267794619,0.56863243,104970.0,104960.0,1.25500334]
[1749267794841,0.58649063,104970.0,104960.0,1.25500334]
[1749267796068,0.59601643,104970.0,104960.0,1.25500334]
[1749267796463,0.57815823,104970.0,104960.0,1.25500334]
[1749267796671,0.57815823,104970.0,104960.0,1.23930334]
[1749267797001,0.5876843,104970.0,104960.0,1.23930334]
[1749267797630,0.60553781,104970.0,104960.0,1.23930334]
[1749267797842,0.5876843,104970.0,104960.0,1.23930334]
[1749267798066,0.60553781,104970.0,104960.0,1.23930334]
[1749267798506,0.60553779,104970.0,104960.0,1.23930334]
[1749267798721,0.5876843,104970.0,104960.0,1.23930334]
[1749267798972,0.60553779,104970.0,104960.0,1.23930334]
[1749267799225,0.5876843,104970.0,104960.0,1.23930334]
[1749267801549,0.57815823,104970.0,104960.0,1.23930334]
[1749267801763,0.5876843,104970.0,104960.0,1.23930334]
[1749267801963,0.57815823,104970.0,104960.0,1.23930334]
[1749267802164,0.5876843,104970.0,104960.0,1.23930334]
[1749267803181,0.58768421,104970.0,104960.0,1.23842334]
[1749267807652,0.57815823,104970.0,104960.0,1.23842334]
[1749267808242,0.5876843,104970.0,104960.0,1.23842334]
[1749267809059,0.57815823,104970.0,104960.0,1.23842334]
[1749267809262,0.58778273,104970.0,104960.0,1.23842334]
[1749267810019,0.57825666,104970.0,104960.0,1.25382334]
[1749267810371,0.57825666,104970.0,104960.0,1.23842334]
[1749267811207,0.57825666,104970.0,104960.0,1.25382334]
[1749267811618,0.56873077,104970.0,104960.0,1.25382334]
[1749267812592,0.55920497,104970.0,104960.0,1.25382334]
[1749267812795,0.56873077,104970.0,104960.0,1.25382334]
[1749267813383,0.57825666,104970.0,104960.0,1.25382334]
[1749267813588,0.58778264,104970.0,104960.0,1.23842334]
[1749267814920,0.60563574,104970.0,104960.0,1.23842334]
[1749267815057,0.62093574,104970.0,104960.0,1.23842334]
[1749267815455,0.63753629,104970.0,104960.0,1.23842334]
[1749267815786,0.63753638,104970.0,104960.0,1.23842334]
[1749267815984,0.61968273,104970.0,104960.0,1.23842334]
[1749267816201,0.62801031,104970.0,104960.0,1.23842334]
[1749267816372,0.63753638,104970.0,104960.0,1.23842334]
[1749267816837,0.61848442,104970.0,104960.0,1.23842334]
[1749267817040,0.59236213,104970.0,104960.0,1.23842334]
[1749267817179,0.60188793,104970.0,104960.0,1.23842334]
[1749267817387,0.611414,104970.0,104960.0,1.23842334]
[1749267817623,0.61141391,104970.0,104960.0,1.23842334]
[1749267817829,0.59355675,104970.0,104960.0,1.23842334]
[1749267818026,0.61141391,104970.0,104960.0,1.23842334]
[1749267818865,0.59355675,104970.0,104960.0,1.23842334]
[1749267819040,0.61141391,104970.0,104960.0,1.23842334]
[1749267819834,0.61142143,104970.0,104960.0,1.23842334]
[1749267820606,0.61142169,104970.0,104960.0,1.23842334]
[1749267820919,0.59355675,104970.0,104960.0,1.23842334]
[1749267821129,0.61142169,104970.0,104960.0,1.23842334]
[1749267821528,0.57825675,104970.0,104960.0,1.23842334]
[1749267821930,0.5961216,104970.0,104960.0,1.23842334]
[1749267822137,0.60564767,104970.0,104960.0,1.23842334]
[1749267822260,0.60564923,104970.0,104960.0,1.23842334]
[1749267822712,0.58778273,104970.0,104960.0,1.23842334]
[1749267822921,0.59612316,104970.0,104960.0,1.23842334]
[1749267823673,0.59612767,104970.0,104960.0,1.23842334]
[1749267824286,0.59612776,104970.0,104960.0,1.23842334]
[1749267825685,0.57825675,104970.0,104960.0,1.23842334]
[1749267825889,0.59612776,104970.0,104960.0,1.23842334]
[1749267826102,0.57825675,104970.0,104960.0,1.23842334]
[1749267826523,0.59612776,104970.0,104960.0,1.23842334]
[1749267827333,0.59612771,104970.0,104960.0,1.23842334]
[1749267827540,0.57825666,104970.0,104960.0,1.23842334]
[1749267827740,0.59612771,104970.0,104960.0,1.23842334]
[1749267827914,0.57825666,104970.0,104960.0,1.23842334]
[1749267828122,0.58778264,104970.0,104960.0,1.23842334]
[1749267828524,0.60565369,104970.0,104960.0,1.23842334]
[1749267829346,0.58778264,104970.0,104960.0,1.23842334]
[1749267829701,0.02877418,104970.0,104960.0,1.23842334]
[1749267829899,0.580638,104970.0,104960.0,1.23842334]
[1749267830141,0.59612771,104970.0,104960.0,1.23842334]
[1749267830966,0.57825666,104970.0,104960.0,1.23842334]
[1749267831122,0.59612771,104970.0,104960.0,1.23842334]
[1749267831319,0.57825666,104970.0,104960.0,1.23842334]
[1749267831531,0.59612771,104970.0,104960.0,1.23842334]
[1749267832517,0.58660182,104970.0,104960.0,1.25492334]
[1749267832719,0.5961278,104970.0,104960.0,1.25492334]
[1749267833361,0.5961278,104970.0,104960.0,1.23842334]
[1749267833913,0.58660182,104970.0,104960.0,1.23842334]
[1749267834284,0.58660183,104970.0,104960.0,1.23842334]
[1749267834714,0.59612781,104970.0,104960.0,1.23842334]
[1749267835332,0.57825675,104970.0,104960.0,1.23842334]
[1749267835530,0.58660183,104970.0,104960.0,1.23842334]
[1749267835732,0.59612772,104970.0,104960.0,1.23842334]
[1749267836107,0.57825666,104970.0,104960.0,1.23842334]
[1749267836312,0.59612772,104970.0,104960.0,1.23842334]
[1749267837473,0.58660183,104970.0,104960.0,1.23842334]
[1749267837755,0.02759355,104970.0,104960.0,1.27112334]
[1749267837969,0.57707603,104970.0,104960.0,1.27112334]
[1749267838377,0.57707564,104970.0,104960.0,1.27112334]
[1749267838585,0.55920497,104970.0,104960.0,1.27112334]
[1749267838737,0.57707564,104970.0,104960.0,1.27112334]
[1749267838935,0.55920497,104970.0,104960.0,1.27112334]
[1749267839163,0.57707565,104970.0,104960.0,1.27112334]
[1749267840316,0.02759317,104970.0,104960.0,1.27112334]
[1749267840500,0.55920497,104970.0,104960.0,1.27112334]
[1749267840727,0.55920497,104970.0,104960.0,1.35112334]
[1749267842919,0.00972249,104970.0,104960.0,1.35112334]
[1749267844225,0.00972249,104970.0,104960.0,1.90060582]
[1749267844767,0.00972249,104970.0,104960.0,1.35112334]
[1749267845527,0.55920497,104970.0,104960.0,1.35112334]
[1749267845723,0.55920497,104970.0,104960.0,1.35312334]
[1749267846686,0.55920497,104970.0,104960.0,1.35412334]
[1749267847817,0.00972249,104970.0,104960.0,1.35412334]
[1749267858457,0.55920497,104970.0,104960.0,1.33792334]
[1749267858698,0.55920497,104970.0,104960.0,1.35452334]
[1749267859058,0.00972249,104970.0,104960.0,0.97236334]
[1749267859280,0.61223836,104970.0,104960.0,1.32062334]
[1749267859469,0.60985693,104970.0,104960.0,0.93926334]
[1749267859923,0.60985693,104970.0,104960.0,1.29204285]
[1749267859924,1.35939692,104970.0,104960.0,1.29204285]
[1749267860134,0.63722743,104970.0,104960.0,1.31109654]
[1749267860338,0.61938363,104970.0,104960.0,1.31009654]
[1749267860542,0.63722709,104970.0,104960.0,1.31009654]
[1749267860754,0.63722942,104970.0,104960.0,1.31009654]
[1749267860975,0.63722932,104970.0,104960.0,1.31009654]
[1749267861183,0.62891007,104970.0,104960.0,1.30809654]
[1749267861411,0.64675576,104970.0,104960.0,1.30809654]
[1749267862012,0.62891007,104970.0,104960.0,1.30809654]
[1749267862434,0.64675576,104970.0,104960.0,1.30809654]
[1749267862829,0.62891007,104970.0,104960.0,1.30809654]
[1749267863031,0.81944069,104970.0,104960.0,1.28904285]
[1749267863233,0.81944069,104970.0,104960.0,1.29856983]
[1749267863430,0.81944069,104970.0,104960.0,1.30809672]
[1749267863672,0.82896722,104970.0,104960.0,1.30809672]
[1749267863843,0.81944115,104970.0,104960.0,1.30809672]
[1749267864009,0.62891053,104970.0,104960.0,1.29856983]
[1749267864217,0.62891053,104970.0,104960.0,1.30809663]
[1749267864421,0.60985756,104970.0,104960.0,1.30809663]
[1749267865460,0.6098572,104970.0,104960.0,1.30809663]
[1749267865631,0.61938354,104970.0,104960.0,1.30809663]
[1749267866040,0.6372325,104970.0,104960.0,1.30809663]
[1749267866247,0.62770616,104970.0,104960.0,1.30809663]
[1749267866579,0.61938354,104970.0,104960.0,1.30809663]
[1749267866940,0.62891007,104970.0,104960.0,1.30809672]
[1749267867149,0.6372325,104970.0,104960.0,1.31762352]
[1749267867328,0.62770616,104970.0,104960.0,1.31762352]
[1749267867685,0.64675812,104970.0,104960.0,1.31762352]
[1749267868055,0.62890916,104970.0,104960.0,1.31762352]
[1749267868267,0.64675812,104970.0,104960.0,1.31762352]
[1749267869026,0.6384356,104970.0,104960.0,1.30809672]
[1749267869233,0.64675814,104970.0,104960.0,1.31762352]
[1749267869773,0.62890916,104970.0,104960.0,1.31762352]
[1749267870203,0.64675814,104970.0,104960.0,1.31762352]
[1749267870571,0.62890916,104970.0,104960.0,1.31762352]
[1749267870780,0.62890916,104970.0,104960.0,1.30809663]
[1749267870984,0.64675814,104970.0,104960.0,1.30809663]
[1749267871194,0.64675757,104970.0,104960.0,1.30809663]
[1749267871390,0.62890916,104970.0,104960.0,1.30809663]
[1749267871622,0.63723123,104970.0,104960.0,1.30809663]
[1749267871821,0.64675757,104970.0,104960.0,1.30809663]
[1749267872095,0.62890916,104970.0,104960.0,1.30809663]
[1749267872333,0.64675757,104970.0,104960.0,1.30809663]
[1749267872541,0.62890916,104970.0,104960.0,1.30809663]
[1749267873625,0.6384356,104970.0,104960.0,1.30809663]
[1749267874291,0.62890916,104970.0,104960.0,1.30809663]
[1749267877233,0.6384356,104970.0,104960.0,1.29856983]
[1749267877444,1.45579649,104970.0,104960.0,0.08]
[1749267877653,5.30643424,104970.0,104960.0,0.6284]
[1749267877852,5.30643592,104970.0,104960.0,0.6284]
[1749267878215,5.31715258,104970.0,104960.0,0.6284]
[1749267878419,5.32827715,104970.0,104960.0,0.6284]
[1749267878627,5.30639939,104970.0,104960.0,0.6284]
[1749267879245,5.28858413,104970.0,104960.0,0.6284]
[1749267879482,5.29971867,104970.0,104960.0,0.6284]
[1749267879739,5.30639941,104970.0,104960.0,0.6284]
[1749267879963,5.28858415,104970.0,104960.0,0.6284]
[1749267880206,5.30639945,104970.0,104960.0,0.6284]
[1749267880432,5.29971871,104970.0,104960.0,0.6284]
[1749267880643,5.30639847,104970.0,104960.0,0.6284]
[1749267881337,4.20075375,104970.0,104960.0,0.6284]
[1749267881516,5.29971871,104970.0,104960.0,0.6284]
[1749267881719,5.28190341,104970.0,104960.0,0.6284]
[1749267881920,5.29970572,104970.0,104960.0,0.6284]
[1749267882120,5.28190341,104970.0,104960.0,0.6284]
[1749267882328,5.29970572,104970.0,104960.0,0.6284]
[1749267882560,5.29970525,104970.0,104960.0,0.6284]
[1749267884032,5.28190341,104970.0,104960.0,0.6284]
[1749267884231,5.29970446,104970.0,104960.0,0.6284]
[1749267885319,5.29970445,104970.0,104960.0,0.6284]
[1749267885543,5.28190341,104970.0,104960.0,0.6284]
[1749267885826,5.29970938,104970.0,104960.0,0.6284]
[1749267887089,1.39051379,104970.0,104960.0,0.6284]
[1749267887271,1.37270541,104970.0,104960.0,0.6284]
[1749267887472,1.39053136,104970.0,104960.0,0.6284]
[1749267887676,1.39721608,104970.0,104960.0,0.6284]
[1749267888333,1.39721939,104970.0,104960.0,0.6284]
[1749267888500,1.39722065,104970.0,104960.0,0.6284]
[1749267888691,1.37939138,104970.0,104960.0,0.6284]
[1749267889496,1.39722064,104970.0,104960.0,0.6284]
[1749267891123,1.39053467,104970.0,104960.0,0.6284]
[1749267891367,1.37939138,104970.0,104960.0,0.6284]
[1749267891579,1.37939139,104970.0,104960.0,0.6284]
[1749267891787,1.37270541,104970.0,104960.0,0.6284]
[1749267892369,1.39722067,104970.0,104960.0,0.6284]
[1749267892600,1.37939139,104970.0,104960.0,0.6284]
[1749267892804,1.37270541,104970.0,104960.0,0.6284]
[1749267893087,1.39054229,104970.0,104960.0,0.6284]
[1749267893322,1.37270541,104970.0,104960.0,0.6284]
[1749267893523,1.37939424,104970.0,104960.0,0.6284]
[1749267893789,1.71939424,104970.0,104960.0,0.6284]
[1749267893990,1.73723112,104970.0,104960.0,0.6284]
[1749267894142,1.71939424,104970.0,104960.0,0.6284]
[1749267894348,1.71270541,104970.0,104960.0,0.6284]
[1749267894679,1.73054229,104970.0,104960.0,0.6284]
[1749267894973,1.73723112,104970.0,104960.0,0.6284]
[1749267895366,1.71939424,104970.0,104960.0,0.6284]
[1749267895570,1.7372311,104970.0,104960.0,0.6284]
[1749267895774,1.71939423,104970.0,104960.0,0.6284]
[1749267896185,1.71270541,104970.0,104960.0,0.6284]
[1749267896388,1.71939423,104970.0,104960.0,0.6284]
[1749267896678,1.73723109,104970.0,104960.0,0.6284]
[1749267896902,1.71939423,104970.0,104960.0,0.6284]
[1749267897104,1.73723109,104970.0,104960.0,0.6284]
[1749267897394,1.71939423,104970.0,104960.0,0.6284]
[1749267897604,1.73054227,104970.0,104960.0,0.6284]
[1749267897803,1.7372311,104970.0,104960.0,0.6284]
[1749267898034,1.71939423,104970.0,104960.0,0.6284]
[1749267898150,1.7372311,104970.0,104960.0,0.6284]
[1749267898557,1.71939423,104970.0,104960.0,0.6284]
[1749267898764,1.7372311,104970.0,104960.0,0.6284]
[1749267899535,1.71939423,104970.0,104960.0,0.6284]
[1749267899738,1.71939536,104970.0,104960.0,0.6284]
[1749267899959,1.73723523,104970.0,104960.0,0.6284]
[1749267900337,1.71270541,104970.0,104960.0,0.6284]
[1749267900534,1.71939536,104970.0,104960.0,0.6284]
[1749267900971,1.73054528,104970.0,104960.0,0.6284]
[1749267901179,1.73723523,104970.0,104960.0,0.6284]
[1749267901382,1.16991286,104970.0,104960.0,0.43762878]
[1749267901579,1.14692293,104970.0,104960.0,0.91526826]
[1749267901806,1.70563376,104970.0,104960.0,0.91526826]
[1749267902013,1.68110541,104970.0,104960.0,0.91526826]
[1749267902130,1.14946142,104970.0,104960.0,0.91526826]
[1749267902329,1.6989439,104970.0,104960.0,0.91526826]
[1749267902539,1.69894391,104970.0,104960.0,0.91526826]
[1749267903020,1.69897365,104970.0,104960.0,0.91526826]
[1749267903176,1.687806,104970.0,104960.0,0.91526826]
[1749267903383,1.69897365,104970.0,104960.0,0.91526826]
[1749267903589,1.68110541,104970.0,104960.0,0.91526826]
[1749267903804,1.70567424,104970.0,104960.0,0.91526826]
[1749267904006,1.15619176,104970.0,104960.0,0.91526826]
[1749267904461,1.13996483,104970.0,104960.0,0.91526826]
[1749267904664,1.12879718,104970.0,104960.0,0.91526826]
[1749267904879,1.13996483,104970.0,104960.0,0.91526826]
[1749267905084,1.67157907,104970.0,104960.0,0.72471948]
[1749267905282,1.7116479,104970.0,104960.0,0.72471948]
[1749267905484,1.14666542,104970.0,104960.0,0.72471948]
[1749267905712,1.14666542,104970.0,104960.0,0.91526826]
[1749267905914,1.14666542,104970.0,104960.0,0.92479569]
[1749267906043,0.05712588,104970.0,104960.0,0.94962285]
[1749267906257,0.58063881,104970.0,104960.0,0.95914992]
[1749267906464,0.58778336,104970.0,104960.0,0.94962285]
[1749267906821,0.6056503,104970.0,104960.0,0.94962294]
[1749267907027,0.59612396,104970.0,104960.0,0.97820397]
[1749267907228,0.59612387,104970.0,104960.0,0.99430343]
[1749267907381,0.60565012,104970.0,104960.0,0.99430343]
[1749267907778,0.60562639,104970.0,104960.0,0.99430343]
[1749267908209,0.60562392,104970.0,104960.0,0.99430343]
[1749267908409,0.04661519,104970.0,104960.0,0.99430343]
[1749267908749,0.58778318,104970.0,104960.0,0.99430343]
[1749267910836,0.57825702,104970.0,104960.0,0.99430343]
[1749267910999,0.57825693,104970.0,104960.0,0.99430343]
[1749267911385,0.58778318,104970.0,104960.0,0.99430343]
[1749267911772,0.58778318,104970.0,104960.0,0.98477663]
[1749267911974,0.59730962,104970.0,104960.0,0.98477663]
[1749267912310,0.59730952,104970.0,104960.0,0.99430343]
[1749267913082,0.59730952,104970.0,104960.0,0.98477663]
[1749267913277,0.58778318,104970.0,104960.0,0.99430343]
[1749267914157,0.0383007,104970.0,104960.0,0.99430343]
[1749267914370,0.59016452,104970.0,104960.0,0.99430343]
[1749267914583,0.58778318,104970.0,104960.0,0.99430343]
[1749267915964,0.00972249,104970.0,104960.0,0.99430343]
[1749267916165,0.57825684,104970.0,104960.0,0.99430343]
[1749267916621,0.57825675,104970.0,104960.0,1.07430343]
[1749267918462,0.56873077,104970.0,104960.0,1.07430343]
[1749267918637,0.57825675,104970.0,104960.0,1.07430343]
[1749267919048,0.56873068,104970.0,104960.0,1.07430343]
[1749267920126,0.55920497,104970.0,104960.0,1.07430343]
[1749267925344,0.00972249,104970.0,104960.0,1.07430343]
[1749267925558,0.55920497,104970.0,104960.0,1.07430343]
[1749267926665,0.55920497,104970.0,104960.0,1.05820343]
[1749267927648,0.55920497,104970.0,104960.0,1.04290343]
[1749267927858,0.55920497,104970.0,104960.0,1.04278343]
[1749267928902,0.55920497,104970.0,104960.0,1.07498343]
[1749267928903,0.00972249,104970.0,104960.0,1.07498343]
[1749267929118,0.55920497,104970.0,104960.0,1.07498343]
[1749267929536,0.00972249,104970.0,104960.0,1.07498343]
[1749267929740,0.55920497,104970.0,104960.0,1.07498343]
[1749267935010,0.55920497,104970.0,104960.0,1.05908343]
[1749267939808,0.00972249,104970.0,104960.0,1.05908343]
[1749267940057,0.00972249,104970.0,104960.0,1.07528343]
[1749267945301,0.01210383,104970.0,104960.0,1.07524343]
[1749267945712,0.00972249,104970.0,104960.0,1.07524343]
[1749267951136,0.00972249,104970.0,104960.0,1.05904343]
[1749267952393,0.00972249,104970.0,104960.0,1.07554343]
[1749267956691,0.00972249,104970.0,104960.0,1.62502591]
[1749267956860,0.00972249,104970.0,104960.0,2.17450839]
[1749267957064,0.00972249,104970.0,104960.0,1.62502591]
[1749267957701,0.00972249,104970.0,104960.0,2.17450839]
[1749267958045,0.00972249,104970.0,104960.0,1.62502591]
[1749267962591,0.00972249,104970.0,104960.0,2.17450839]
[1749267963275,0.00972249,104970.0,104960.0,1.24394591]
[1749267963443,0.00972249,104970.0,104960.0,1.05888343]
[1749267963648,0.00972249,104970.0,104960.0,1.22744591]
[1749267963846,0.02602249,104970.0,104960.0,1.59206591]
[1749267964051,0.00972249,104970.0,104960.0,1.21114591]
[1749267964362,0.00972249,104970.0,104960.0,1.59206591]
[1749267964768,0.00972249,104970.0,104960.0,1.04258343]
[1749267968991,0.00972249,104970.0,104960.0,1.59206591]
[1749267970886,0.00972249,104970.0,104960.0,1.60816591]
[1749267971278,0.00972249,104970.0,104960.0,1.86658591]
[1749267972465,0.00972249,104970.0,104960.0,1.88268591]
[1749267973809,0.00724249,104970.0,104960.0,1.88268591]
[1749267974770,0.00724249,104970.0,104960.0,1.86658591]
[1749267977365,0.00724249,104970.0,104960.0,1.88168591]
[1749267978623,0.00724249,104970.0,104960.0,2.44666839]
[1749267979710,0.00724249,104970.0,104960.0,2.44658839]
[1749267984395,0.00724249,104970.0,104960.0,1.86650591]
[1749267989366,0.00724249,104970.0,104960.0,1.88240591]
[1749267992050,0.00724249,104970.0,104960.0,1.86650591]
[1749267994300,0.00724249,104970.0,104960.0,1.88180591]
[1749267998274,0.00724249,104970.0,104960.0,1.86650591]
[1749267999630,0.00724249,104970.0,104960.0,1.88160591]
[1749268003733,0.00724249,104970.0,104960.0,1.89750591]
[1749268004879,0.00724249,104970.0,104960.0,2.44698839]
[1749268005105,0.00724249,104970.0,104960.0,1.86650591]
[1749268006708,0.03824249,104970.0,104960.0,1.02554343]
[1749268006922,0.03824249,104970.0,104960.0,1.31690343]
[1749268007857,0.03824249,104970.0,104960.0,0.93618343]
[1749268008075,0.58772497,104970.0,104960.0,1.31690343]
[1749268008300,0.58772497,104970.0,104960.0,1.31686343]
[1749268008730,0.59725068,104970.0,104960.0,1.31686343]
[1749268009152,0.58772497,104970.0,104960.0,1.31686343]
[1749268009564,0.59725068,104970.0,104960.0,1.31686343]
[1749268011697,0.60677648,104970.0,104960.0,1.31686343]
[1749268011919,0.81635988,104970.0,104960.0,0.98743569]
[1749268012143,0.61630336,104970.0,104960.0,0.91713001]
[1749268012358,0.62582989,104970.0,104960.0,1.30737699]
[1749268012795,0.62582989,104970.0,104960.0,1.29785001]
[1749268013442,0.80683462,104970.0,104960.0,1.27879569]
[1749268013664,0.616304,104970.0,104960.0,1.30737708]
[1749268013900,0.60677747,104970.0,104960.0,1.30737708]
[1749268014111,0.616304,104970.0,104960.0,1.30737708]
[1749268014539,0.616304,104970.0,104960.0,1.2978501]
[1749268014746,0.616304,104970.0,104960.0,1.30737708]
[1749268015213,0.60677747,104970.0,104960.0,1.31690388]
[1749268015423,0.60677747,104970.0,104960.0,1.31690397]
[1749268016280,0.61630391,104970.0,104960.0,1.31690397]
[1749268017742,0.05729454,104970.0,104960.0,1.31690334]
[1749268017990,0.62821114,104970.0,104960.0,1.30737654]
[1749268018195,0.6258298,104970.0,104960.0,1.30737654]
[1749268020255,0.06682088,104970.0,104960.0,1.31690334]
[1749268020461,0.05967588,104970.0,104960.0,1.31690334]
[1749268020667,0.6186847,104970.0,104960.0,1.31690334]
[1749268020901,0.6258298,104970.0,104960.0,1.30737654]
[1749268022128,0.60677684,104970.0,104960.0,1.31690334]
[1749268022335,0.59725077,104970.0,104960.0,1.31690334]
[1749268022949,0.03824249,104970.0,104960.0,1.86638582]
[1749268023151,0.00724249,104970.0,104960.0,1.86638582]
[1749268023729,0.00724249,104970.0,104960.0,1.31690334]
[1749268025505,0.00724249,104970.0,104960.0,1.88248582]
[1749268025706,0.00724249,104970.0,104960.0,1.89898582]
[1749268028584,0.00724249,104970.0,104960.0,2.4484683]
[1749268029004,0.00724249,104970.0,104960.0,1.89898582]
[1749268030688,0.00724249,104970.0,104960.0,2.4484683]
[1749268031305,0.00724249,104970.0,104960.0,1.92730863]
[1749268031956,0.00724249,104970.0,104960.0,1.89868263]
[1749268032193,0.00724249,104970.0,104960.0,1.92730863]
[1749268033401,0.00724249,104970.0,104960.0,1.37812934]
[1749268033605,0.00724249,104970.0,104960.0,1.89868263]
[1749268034799,0.00724249,104970.0,104960.0,1.92730863]
[1749268039229,0.01514183,104980.0,104970.0,0.21910911]
[1749268039444,0.01367998,104980.0,104970.0,0.31550859]
[1749268040286,0.01231998,104980.0,104970.0,0.31550859]
[1749268040696,0.01231998,104980.0,104970.0,0.32516557]
[1749268041112,0.01231998,104980.0,104970.0,0.41444557]
[1749268041748,0.01231998,104980.0,104970.0,0.49444557]
[1749268041954,0.01231998,104980.0,104970.0,1.04362486]
[1749268042158,0.01231998,104980.0,104970.0,0.49444557]
[1749268042980,0.01231998,104980.0,104970.0,0.51104557]
[1749268043414,0.01231998,104980.0,104970.0,0.49444557]
[1749268043906,0.01231998,104980.0,104970.0,1.06022486]
[1749268046220,0.01231998,104980.0,104970.0,1.05601719]
[1749268046456,0.01231998,104980.0,104970.0,1.07141719]
[1749268047076,0.01231998,104980.0,104970.0,1.05601719]
[1749268049062,0.01231998,104980.0,104970.0,1.03941719]
[1749268051423,0.01231998,104980.0,104970.0,1.03937041]
[1749268051629,0.01231998,104980.0,104970.0,1.07107041]
[1749268052262,0.01231998,104980.0,104970.0,1.05567041]
[1749268052872,0.01231998,104980.0,104970.0,1.03937041]
[1749268056281,0.01231998,104980.0,104970.0,1.28641041]
[1749268056929,0.01231998,104980.0,104970.0,1.30271041]
[1749268058828,0.01231998,104980.0,104970.0,1.28641041]
[1749268064264,0.01231998,104980.0,104970.0,1.27675343]
[1749268068064,0.01231998,104980.0,104970.0,1.55123343]
[1749268071246,0.02881998,104980.0,104970.0,1.55123343]
[1749268073935,0.02881998,104980.0,104970.0,1.84235343]
[1749268076787,0.01231998,104980.0,104970.0,2.40658594]
[1749268076989,0.01231998,104980.0,104970.0,2.76268594]
[1749268077201,0.01231998,104980.0,104970.0,2.79130894]
[1749268078445,0.01231998,104980.0,104970.0,2.79430894]
[1749268079932,0.01231998,104980.0,104970.0,1.84867643]
[1749268080134,0.01231998,104980.0,104970.0,2.23203643]
[1749268080347,0.01231998,104980.0,104970.0,2.24813643]
[1749268080565,0.01231998,104980.0,104970.0,1.69900392]
[1749268080776,0.01231998,104980.0,104970.0,2.24813643]
[1749268082128,0.01231998,104980.0,104970.0,2.21693643]
[1749268082715,0.01231998,104980.0,104970.0,2.23203643]
[1749268082921,0.01231998,104980.0,104970.0,1.86777643]
[1749268083119,0.01231998,104980.0,104970.0,2.24809643]
[1749268085939,0.01231998,104980.0,104970.0,1.69896392]
[1749268086144,0.01231998,104980.0,104970.0,2.24809643]
[1749268086559,0.01231998,104980.0,104970.0,2.81176979]
[1749268092324,0.01231998,104980.0,104970.0,3.00446979]
[1749268098799,0.01231998,104980.0,104970.0,3.6036023]
[1749268099011,0.01231998,104980.0,104970.0,3.05446979]
[1749268099646,0.01231998,104980.0,104970.0,3.05146979]
[1749268100094,0.01231998,104980.0,104970.0,3.05746979]
[1749268100627,0.01231998,104980.0,104970.0,3.05446979]
[1749268100836,0.01231998,104980.0,104970.0,3.06046979]
[1749268103768,0.01231998,104980.0,104970.0,3.06070979]
[1749268105353,0.00983998,104980.0,104970.0,3.06070979]
[1749268110589,0.00983998,104980.0,104970.0,3.15674979]
[1749268111925,0.00983998,104980.0,104970.0,2.77618979]
[1749268112124,0.00983998,104980.0,104970.0,3.15658979]
[1749268112768,0.00983998,104980.0,104970.0,3.15654979]
[1749268114568,0.0326,105000.0,104990.0,0.65540823]
[1749268114569,0.0012,105000.0,104990.0,0.65540823]
[1749268114772,0.00124788,105000.0,104990.0,2.44920524]
[1749268114991,0.00124788,105000.0,104990.0,1.88427273]
[1749268115198,0.00124788,105000.0,104990.0,2.19957278]
[1749268115402,0.03254788,105000.0,104990.0,2.72731729]
[1749268115603,0.03254788,105000.0,104990.0,2.77731729]
[1749268115942,0.03254788,105000.0,104990.0,2.72731729]
[1749268116762,0.03254788,105000.0,104990.0,2.73431729]
[1749268117172,0.03254788,105000.0,104990.0,1.27623684]
[1749268117384,0.03254788,105000.0,104990.0,1.44297599]
[1749268117585,0.03254788,105000.0,104990.0,1.82953599]
[1749268117783,0.03254788,105000.0,104990.0,1.83653599]
[1749268118208,0.03254788,105000.0,104990.0,1.82953599]
[1749268118438,0.03254788,105000.0,104990.0,2.17553599]